fUSD/lending_fUSD_20260610
["ID","MTS","AMOUNT","RATE_DAILY","PERIOD"]
[424673906,1781041838000,-181.337961,0.00011171,2]
[424673907,1781041838000,-160.0,0.00011171,2]
[424673896,1781041838000,-47248.58835364,0.00011099,2]
[424673903,1781041838000,-1192.0243196,0.0001114,2]
[424673893,1781041838000,-47248.58835364,0.00011099,2]
[424673909,1781041838000,-353.58792,0.00011171,2]
[424673891,1781041838000,-47248.58835366,0.00011099,2]
[424673889,1781041838000,-261.377294,0.00011098,2]
[424673900,1781041838000,-62845.81336586,0.00011099,2]
[424673895,1781041838000,-47248.58835364,0.00011099,2]
[424673977,1781041839000,-500.0,0.00012856,2]
[424673980,1781041839000,-9999.99,0.00012893,2]
[424673978,1781041839000,-62845.81336586,0.00012885,2]
[424673976,1781041839000,-182.090262,0.00012847,2]
[424673971,1781041839000,-453.66,0.00012329,2]
[424673973,1781041839000,-500.0,0.00012582,2]
[424673972,1781041839000,-500.0,0.00012438,2]
[424673969,1781041839000,-777.22954659,0.00012277,2]
[424673967,1781041839000,-62845.81336586,0.00012246,2]
[424673981,1781041839000,-9999.99,0.00012893,2]
[424673975,1781041839000,-47248.58835364,0.00012841,2]
[424673974,1781041839000,-187.28,0.00012798,2]
[424673993,1781041839000,-187.28,0.00013332,2]
[424673983,1781041839000,-5436.01,0.00012893,2]
[424673982,1781041839000,-299.99,0.00012893,2]
[424673985,1781041839000,-217.965486,0.00012962,2]
[424673995,1781041839000,-1045.25,0.000134,2]
[424673986,1781041839000,-296.698921,0.00012989,2]
[424673984,1781041839000,-150.99,0.00012893,2]
[424673988,1781041839000,-156.35,0.00013129,2]
[424673987,1781041839000,-287.407311,0.00013084,2]
[424673994,1781041839000,-2000.0,0.00013347,2]
[424673989,1781041839000,-468.3666,0.0001315,2]
[424673991,1781041839000,-332.850727,0.00013215,2]
[424673965,1781041839000,-47248.58835364,0.00012188,2]
[424673979,1781041839000,-7663.99,0.00012893,2]
[424673970,1781041839000,-500.0,0.00012308,2]
[424673961,1781041839000,-736.0,0.00012007,2]
[424673966,1781041839000,-500.0,0.00012246,2]
[424673990,1781041839000,-1252.0,0.00013207,2]
[424673939,1781041839000,-1192.0243196,0.00011387,2]
[424673949,1781041839000,-166.66,0.00011507,2]
[424673947,1781041839000,-23464.5623906,0.00011468,2]
[424673948,1781041839000,-500.0,0.00011487,2]
[424673941,1781041839000,-1192.0243196,0.00011399,2]
[424673940,1781041839000,-166.66,0.00011397,2]
[424673943,1781041839000,-1192.0243196,0.00011423,2]
[424673942,1781041839000,-1192.0243196,0.00011411,2]
[424673946,1781041839000,-1192.0243196,0.00011457,2]
[424673944,1781041839000,-1192.0243196,0.00011434,2]
[424673945,1781041839000,-1192.0243196,0.00011446,2]
[424673964,1781041839000,-2000.0,0.00012134,2]
[424673950,1781041839000,-47248.58835364,0.00011534,2]
[424673956,1781041839000,-570.574849,0.0001186,2]
[424673951,1781041839000,-62845.81336586,0.00011608,2]
[424673957,1781041839000,-552.706368,0.00011947,2]
[424673953,1781041839000,-187.28,0.00011732,2]
[424673954,1781041839000,-500.0,0.00011761,2]
[424673955,1781041839000,-419.164396,0.00011834,2]
[424673960,1781041839000,-900.705,0.00012006,2]
[424673958,1781041839000,-2897.04049184,0.00011957,2]
[424673959,1781041839000,-189.60980376,0.00011966,2]
[424673963,1781041839000,-640.097553,0.00012066,2]
[424673962,1781041839000,-500.0,0.00012035,2]
[424673968,1781041839000,-187.28,0.00012265,2]
[424673952,1781041839000,-350.173582,0.0001173,2]
[424673992,1781041839000,-199.5,0.00013322,2]
[424673996,1781041839000,-1680.98553392,0.00013428,2]
[424673998,1781041839000,-150.3730817,0.00013488,2]
[424674028,1781041839000,-593.60148306,0.00013548,2]
[424674026,1781041839000,-150.0,0.00013548,2]
[424674029,1781041839000,-150.0,0.00013553,2]
[424674032,1781041839000,-150.0,0.00013568,2]
[424674041,1781041839000,-150.0,0.00013597,2]
[424674031,1781041839000,-593.60148306,0.00013563,2]
[424674042,1781041839000,-1712.72948449,0.00013599,2]
[424674035,1781041839000,-174.71291421,0.00013578,2]
[424674034,1781041839000,-150.0,0.00013569,2]
[424674033,1781041839000,-150.0,0.00013569,2]
[424674037,1781041839000,-150.0,0.00013585,2]
[424674036,1781041839000,-593.60148306,0.00013578,2]
[424674023,1781041839000,-150.0,0.00013537,2]
[424674040,1781041839000,-593.60148306,0.00013594,2]
[424674038,1781041839000,-150.0,0.00013588,2]
[424674054,1781041839000,-593.60148306,0.00013639,2]
[424674043,1781041839000,-150.0,0.00013602,2]
[424674046,1781041839000,-593.60148306,0.00013609,2]
[424674044,1781041839000,-150.0,0.00013608,2]
[424674047,1781041839000,-150.0,0.00013618,2]
[424674049,1781041839000,-174.71291421,0.00013624,2]
[424674045,1781041839000,-174.71291421,0.00013609,2]
[424674048,1781041839000,-150.0,0.00013624,2]
[424674050,1781041839000,-593.60148306,0.00013624,2]
[424674053,1781041839000,-174.71291421,0.00013639,2]
[424674051,1781041839000,-150.0,0.00013628,2]
[424674039,1781041839000,-174.71291421,0.00013594,2]
[424674027,1781041839000,-174.71291421,0.00013548,2]
[424674052,1781041839000,-150.0,0.00013634,2]
[424674025,1781041839000,-164.64,0.00013548,2]
[424674006,1781041839000,-150.086276,0.00013488,2]
[424674003,1781041839000,-150.0,0.00013488,2]
[424674000,1781041839000,-150.0,0.00013488,2]
[424674001,1781041839000,-150.0,0.00013488,2]
[424673997,1781041839000,-256.80626028,0.00013428,2]
[424673999,1781041839000,-150.0,0.00013488,2]
[424674002,1781041839000,-174.71291421,0.00013488,2]
[424674024,1781041839000,-150.0,0.00013542,2]
[424674005,1781041839000,-150.0,0.00013488,2]
[424674018,1781041839000,-500.0,0.00013522,2]
[424674008,1781041839000,-150.0,0.00013488,2]
[424674007,1781041839000,-593.60148306,0.00013488,2]
[424674009,1781041839000,-47248.58835364,0.00013494,2]
[424674004,1781041839000,-150.0,0.00013488,2]
[424674014,1781041839000,-150.0,0.00013515,2]
[424674011,1781041839000,-593.60148306,0.00013503,2]
[424674030,1781041839000,-174.71291421,0.00013563,2]
[424674020,1781041839000,-150.0,0.00013528,2]
[424674021,1781041839000,-174.71291421,0.00013533,2]
[424674019,1781041839000,-62845.81336586,0.00013523,2]
[424674022,1781041839000,-593.60148306,0.00013533,2]
[424674015,1781041839000,-174.71291421,0.00013518,2]
[424674013,1781041839000,-150.0,0.00013508,2]
[424674010,1781041839000,-174.71291421,0.00013503,2]
[424674012,1781041839000,-150.0,0.00013504,2]
[424674016,1781041839000,-593.60148306,0.00013518,2]
[424674017,1781041839000,-150.0,0.0001352,2]
[424674092,1781041840000,-500.0,0.00013698,2]
[424674097,1781041840000,-500.0,0.00013698,2]
[424674101,1781041840000,-500.0,0.00013698,2]
[424674090,1781041840000,-500.0,0.00013698,2]
[424674094,1781041840000,-500.0,0.00013698,2]
[424674086,1781041840000,-500.0,0.00013698,2]
[424674089,1781041840000,-500.53,0.00013698,2]
[424674085,1781041840000,-500.0,0.00013698,2]
[424674087,1781041840000,-500.0,0.00013698,2]
[424674084,1781041840000,-500.0,0.00013698,2]
[424674091,1781041840000,-639.36,0.00013698,2]
[424674098,1781041840000,-500.0,0.00013698,2]
[424674106,1781041840000,-702.0,0.00013698,2]
[424674100,1781041840000,-500.0,0.00013698,2]
[424674095,1781041840000,-500.0,0.00013698,2]
[424674093,1781041840000,-500.0,0.00013698,2]
[424674099,1781041840000,-500.0,0.00013698,2]
[424674103,1781041840000,-702.0,0.00013698,2]
[424674111,1781041840000,-702.0,0.00013698,2]
[424674112,1781041840000,-702.0,0.00013698,2]
[424674113,1781041840000,-702.0,0.00013698,2]
[424674114,1781041840000,-500.0,0.00013698,2]
[424674102,1781041840000,-702.0,0.00013698,2]
[424674104,1781041840000,-702.0,0.00013698,2]
[424674105,1781041840000,-702.0,0.00013698,2]
[424674083,1781041840000,-500.0,0.00013698,2]
[424674096,1781041840000,-500.0,0.00013698,2]
[424674082,1781041840000,-500.0,0.00013698,2]
[424674068,1781041840000,-593.60148306,0.00013684,2]
[424674080,1781041840000,-500.0,0.00013698,2]
[424674109,1781041840000,-702.0,0.00013698,2]
[424674056,1781041840000,-150.0,0.00013651,2]
[424674064,1781041840000,-593.60148306,0.00013669,2]
[424674055,1781041840000,-150.0,0.00013648,2]
[424674066,1781041840000,-150.0,0.00013683,2]
[424674057,1781041840000,-150.0,0.00013651,2]
[424674065,1781041840000,-150.0,0.00013678,2]
[424674063,1781041840000,-174.71291421,0.00013669,2]
[424674060,1781041840000,-593.60148306,0.00013654,2]
[424674058,1781041840000,-174.71291421,0.00013654,2]
[424674059,1781041840000,-150.0,0.00013654,2]
[424674062,1781041840000,-150.0,0.00013668,2]
[424674088,1781041840000,-500.0,0.00013698,2]
[424674061,1781041840000,-150.0,0.00013667,2]
[424674069,1781041840000,-458.0,0.00013685,2]
[424674070,1781041840000,-449.0,0.00013685,2]
[424674076,1781041840000,-500.0,0.00013698,2]
[424674072,1781041840000,-287.34212826,0.00013698,2]
[424674071,1781041840000,-150.0,0.00013687,2]
[424674074,1781041840000,-500.0,0.00013698,2]
[424674073,1781041840000,-500.0,0.00013698,2]
[424674075,1781041840000,-500.0,0.00013698,2]
[424674078,1781041840000,-500.0,0.00013698,2]
[424674077,1781041840000,-500.0,0.00013698,2]
[424674079,1781041840000,-500.0,0.00013698,2]
[424674081,1781041840000,-500.0,0.00013698,2]
[424674067,1781041840000,-174.71291421,0.00013684,2]
[424674107,1781041840000,-702.0,0.00013698,2]
[424674178,1781041840000,-818.36869895,0.00013699,2]
[424674110,1781041840000,-702.0,0.00013698,2]
[424674150,1781041840000,-818.36869895,0.00013699,2]
[424674157,1781041840000,-818.36869895,0.00013699,2]
[424674156,1781041840000,-818.36869895,0.00013699,2]
[424674151,1781041840000,-818.36869895,0.00013699,2]
[424674155,1781041840000,-818.36869895,0.00013699,2]
[424674158,1781041840000,-818.36869895,0.00013699,2]
[424674159,1781041840000,-818.36869895,0.00013699,2]
[424674160,1781041840000,-818.36869895,0.00013699,2]
[424674162,1781041840000,-818.36869895,0.00013699,2]
[424674161,1781041840000,-818.36869895,0.00013699,2]
[424674167,1781041840000,-818.36869895,0.00013699,2]
[424674165,1781041840000,-818.36869895,0.00013699,2]
[424674152,1781041840000,-818.36869895,0.00013699,2]
[424674166,1781041840000,-818.36869895,0.00013699,2]
[424674168,1781041840000,-818.36869895,0.00013699,2]
[424674169,1781041840000,-818.36869895,0.00013699,2]
[424674170,1781041840000,-818.36869895,0.00013699,2]
[424674172,1781041840000,-818.36869895,0.00013699,2]
[424674171,1781041840000,-818.36869895,0.00013699,2]
[424674179,1781041840000,-818.36869895,0.00013699,2]
[424674174,1781041840000,-818.36869895,0.00013699,2]
[424674176,1781041840000,-818.36869895,0.00013699,2]
[424674177,1781041840000,-818.36869895,0.00013699,2]
[424674173,1781041840000,-818.36869895,0.00013699,2]
[424674108,1781041840000,-702.0,0.00013698,2]
[424674175,1781041840000,-818.36869895,0.00013699,2]
[424674164,1781041840000,-818.36869895,0.00013699,2]
[424674153,1781041840000,-818.36869895,0.00013699,2]
[424674163,1781041840000,-818.36869895,0.00013699,2]
[424674149,1781041840000,-818.36869895,0.00013699,2]
[424674119,1781041840000,-500.0,0.00013698,2]
[424674148,1781041840000,-22275.79,0.00013699,2]
[424674116,1781041840000,-500.0,0.00013698,2]
[424674118,1781041840000,-500.0,0.00013698,2]
[424674117,1781041840000,-500.0,0.00013698,2]
[424674120,1781041840000,-500.0,0.00013698,2]
[424674123,1781041840000,-500.0,0.00013698,2]
[424674122,1781041840000,-500.0,0.00013698,2]
[424674126,1781041840000,-500.0,0.00013698,2]
[424674124,1781041840000,-500.0,0.00013698,2]
[424674125,1781041840000,-500.0,0.00013698,2]
[424674121,1781041840000,-500.0,0.00013698,2]
[424674128,1781041840000,-500.0,0.00013698,2]
[424674115,1781041840000,-500.0,0.00013698,2]
[424674147,1781041840000,-9999.99,0.00013699,2]
[424674154,1781041840000,-818.36869895,0.00013699,2]
[424674146,1781041840000,-24481.89,0.00013699,2]
[424674133,1781041840000,-500.0,0.00013698,2]
[424674138,1781041840000,-500.0,0.00013698,2]
[424674131,1781041840000,-500.0,0.00013698,2]
[424674136,1781041840000,-500.0,0.00013698,2]
[424674144,1781041840000,-200.0,0.00013699,2]
[424674145,1781041840000,-188.1,0.00013699,2]
[424674127,1781041840000,-500.0,0.00013698,2]
[424674142,1781041840000,-500.0,0.00013698,2]
[424674140,1781041840000,-500.0,0.00013698,2]
[424674129,1781041840000,-566.6258752,0.00013698,2]
[424674221,1781041841000,-4050.92505984,0.00013699,2]
[424674219,1781041841000,-4050.92505984,0.00013699,2]
[424674220,1781041841000,-4050.92505984,0.00013699,2]
[424674215,1781041841000,-4050.92505984,0.00013699,2]
[424674214,1781041841000,-4050.92505984,0.00013699,2]
[424674209,1781041841000,-4050.92505984,0.00013699,2]
[424674213,1781041841000,-4050.92505984,0.00013699,2]
[424674218,1781041841000,-4050.92505984,0.00013699,2]
[424674212,1781041841000,-4050.92505984,0.00013699,2]
[424674222,1781041841000,-4050.92505984,0.00013699,2]
[424674211,1781041841000,-4050.92505984,0.00013699,2]
[424674216,1781041841000,-4050.92505984,0.00013699,2]
[424674217,1781041841000,-4050.92505984,0.00013699,2]
[424674224,1781041841000,-4050.92505984,0.00013699,2]
[424674230,1781041841000,-4050.92505984,0.00013699,2]
[424674225,1781041841000,-4050.92505984,0.00013699,2]
[424674223,1781041841000,-4050.92505984,0.00013699,2]
[424674228,1781041841000,-4050.92505984,0.00013699,2]
[424674227,1781041841000,-4050.92505984,0.00013699,2]
[424674240,1781041841000,-4050.92505977,0.00013699,2]
[424674229,1781041841000,-4050.92505984,0.00013699,2]
[424674231,1781041841000,-4050.92505984,0.00013699,2]
[424674232,1781041841000,-4050.92505984,0.00013699,2]
[424674236,1781041841000,-4050.92505984,0.00013699,2]
[424674238,1781041841000,-4050.92505984,0.00013699,2]
[424674234,1781041841000,-4050.92505984,0.00013699,2]
[424674233,1781041841000,-4050.92505984,0.00013699,2]
[424674226,1781041841000,-4050.92505984,0.00013699,2]
[424674207,1781041841000,-4050.92505984,0.00013699,2]
[424674181,1781041841000,-818.36869895,0.00013699,2]
[424674206,1781041841000,-818.36869895,0.00013699,2]
[424674235,1781041841000,-4050.92505984,0.00013699,2]
[424674180,1781041841000,-818.36869895,0.00013699,2]
[424674183,1781041841000,-818.36869895,0.00013699,2]
[424674192,1781041841000,-818.36869895,0.00013699,2]
[424674193,1781041841000,-818.36869895,0.00013699,2]
[424674189,1781041841000,-818.36869895,0.00013699,2]
[424674184,1781041841000,-818.36869895,0.00013699,2]
[424674186,1781041841000,-818.36869895,0.00013699,2]
[424674182,1781041841000,-818.36869895,0.00013699,2]
[424674188,1781041841000,-818.36869895,0.00013699,2]
[424674190,1781041841000,-818.36869895,0.00013699,2]
[424674185,1781041841000,-818.36869895,0.00013699,2]
[424674191,1781041841000,-818.36869895,0.00013699,2]
[424674187,1781041841000,-818.36869895,0.00013699,2]
[424674205,1781041841000,-818.36869895,0.00013699,2]
[424674194,1781041841000,-818.36869895,0.00013699,2]
[424674204,1781041841000,-818.36869895,0.00013699,2]
[424674195,1781041841000,-818.36869895,0.00013699,2]
[424674200,1781041841000,-818.36869895,0.00013699,2]
[424674197,1781041841000,-818.36869895,0.00013699,2]
[424674199,1781041841000,-818.36869895,0.00013699,2]
[424674198,1781041841000,-818.36869895,0.00013699,2]
[424674196,1781041841000,-818.36869895,0.00013699,2]
[424674203,1781041841000,-818.36869895,0.00013699,2]
[424674201,1781041841000,-818.36869895,0.00013699,2]
[424674202,1781041841000,-818.36869895,0.00013699,2]
[424674208,1781041841000,-4050.92505984,0.00013699,2]
[424674210,1781041841000,-4050.92505984,0.00013699,2]
[424674239,1781041841000,-4050.92505977,0.00013699,2]
[424674295,1781041841000,-593.60148306,0.00013866,2]
[424674241,1781041841000,-150.0,0.00013699,2]
[424674267,1781041841000,-500.0,0.00013781,2]
[424674272,1781041841000,-593.60148306,0.0001379,2]
[424674273,1781041841000,-150.0,0.00013797,2]
[424674274,1781041841000,-174.71291421,0.00013806,2]
[424674277,1781041841000,-150.0,0.00013813,2]
[424674275,1781041841000,-593.60148306,0.00013806,2]
[424674280,1781041841000,-150.0,0.00013821,2]
[424674279,1781041841000,-174.71291421,0.00013821,2]
[424674291,1781041841000,-156.35,0.00013858,2]
[424674290,1781041841000,-593.60148306,0.00013851,2]
[424674282,1781041841000,-150.0,0.00013827,2]
[424674283,1781041841000,-150.0,0.0001383,2]
[424674270,1781041841000,-150.0,0.00013787,2]
[424674287,1781041841000,-150.0,0.00013846,2]
[424674281,1781041841000,-593.60148306,0.00013821,2]
[424674288,1781041841000,-150.0,0.00013847,2]
[424674284,1781041841000,-174.71291421,0.00013836,2]
[424674289,1781041841000,-174.71291421,0.00013851,2]
[424674285,1781041841000,-593.60148306,0.00013836,2]
[424674292,1781041841000,-150.0,0.00013862,2]
[424674296,1781041841000,-150.0,0.00013867,2]
[424674298,1781041841000,-150.0,0.00013879,2]
[424674297,1781041841000,-150.0,0.00013869,2]
[424674299,1781041841000,-174.71291421,0.00013881,2]
[424674300,1781041841000,-593.60148306,0.00013881,2]
[424674293,1781041841000,-187.28,0.00013865,2]
[424674286,1781041841000,-150.0,0.00013842,2]
[424674271,1781041841000,-174.71291421,0.0001379,2]
[424674294,1781041841000,-174.71291421,0.00013866,2]
[424674276,1781041841000,-150.0,0.00013807,2]
[424674269,1781041841000,-150.0,0.00013787,2]
[424674243,1781041841000,-593.60148306,0.000137,2]
[424674245,1781041841000,-150.0,0.00013706,2]
[424674244,1781041841000,-150.0,0.00013702,2]
[424674246,1781041841000,-150.0,0.00013707,2]
[424674242,1781041841000,-174.71291421,0.000137,2]
[424674249,1781041841000,-150.0,0.00013716,2]
[424674252,1781041841000,-174.71291421,0.0001373,2]
[424674247,1781041841000,-174.71291421,0.00013715,2]
[424674251,1781041841000,-1500.0,0.00013729,2]
[424674248,1781041841000,-593.60148306,0.00013715,2]
[424674253,1781041841000,-593.60148306,0.0001373,2]
[424674250,1781041841000,-150.0,0.00013727,2]
[424674255,1781041841000,-150.0,0.00013733,2]
[424674237,1781041841000,-4050.92505984,0.00013699,2]
[424674266,1781041841000,-593.60148306,0.00013775,2]
[424674265,1781041841000,-174.71291421,0.00013775,2]
[424674278,1781041841000,-150.0,0.00013815,2]
[424674268,1781041841000,-150.0,0.00013781,2]
[424674264,1781041841000,-150.0,0.00013767,2]
[424674262,1781041841000,-593.60148306,0.0001376,2]
[424674254,1781041841000,-150.0,0.00013732,2]
[424674261,1781041841000,-174.71291421,0.0001376,2]
[424674258,1781041841000,-150.0,0.00013747,2]
[424674256,1781041841000,-174.71291421,0.00013745,2]
[424674260,1781041841000,-150.0,0.0001376,2]
[424674259,1781041841000,-150.0,0.00013748,2]
[424674263,1781041841000,-150.0,0.00013765,2]
[424674257,1781041841000,-593.60148306,0.00013745,2]
[424674346,1781041842000,-150.0,0.00014009,2]
[424674345,1781041842000,-150.0,0.00014007,2]
[424674347,1781041842000,-174.71291421,0.00014017,2]
[424674344,1781041842000,-150.0,0.00014005,2]
[424674336,1781041842000,-150.0,0.00013987,2]
[424674327,1781041842000,-593.60148306,0.00013972,2]
[424674337,1781041842000,-150.0,0.00013987,2]
[424674329,1781041842000,-150.0,0.00013976,2]
[424674333,1781041842000,-150.0,0.00013987,2]
[424674342,1781041842000,-174.71291421,0.00014002,2]
[424674335,1781041842000,-174.71291421,0.00013987,2]
[424674350,1781041842000,-150.0,0.00014027,2]
[424674348,1781041842000,-593.60148306,0.00014017,2]
[424674349,1781041842000,-150.0,0.00014025,2]
[424674355,1781041842000,-150.0,0.00014042,2]
[424674352,1781041842000,-174.71291421,0.00014033,2]
[424674351,1781041842000,-150.0,0.00014033,2]
[424674339,1781041842000,-26549.36750231,0.0001399,2]
[424674353,1781041842000,-593.60148306,0.00014033,2]
[424674370,1781041842000,-593.60148306,0.00014078,2]
[424674359,1781041842000,-174.71291421,0.00014048,2]
[424674362,1781041842000,-593.60148306,0.00014048,2]
[424674371,1781041842000,-150.0,0.00014087,2]
[424674364,1781041842000,-150.0,0.0001406,2]
[424674363,1781041842000,-150.0,0.00014058,2]
[424674365,1781041842000,-174.71291421,0.00014063,2]
[424674357,1781041842000,-150.0,0.00014047,2]
[424674343,1781041842000,-593.60148306,0.00014002,2]
[424674323,1781041842000,-150.0,0.0001396,2]
[424674331,1781041842000,-150.0,0.00013978,2]
[424674366,1781041842000,-593.60148306,0.00014063,2]
[424674302,1781041842000,-150.0,0.00013895,2]
[424674301,1781041842000,-150.0,0.00013887,2]
[424674304,1781041842000,-174.71291421,0.00013896,2]
[424674313,1781041842000,-593.60148306,0.00013927,2]
[424674307,1781041842000,-150.0,0.00013911,2]
[424674305,1781041842000,-593.60148306,0.00013896,2]
[424674303,1781041842000,-150.0,0.00013896,2]
[424674306,1781041842000,-150.0,0.00013907,2]
[424674308,1781041842000,-174.71291421,0.00013912,2]
[424674310,1781041842000,-150.0,0.00013916,2]
[424674311,1781041842000,-150.0,0.00013924,2]
[424674340,1781041842000,-150.0,0.00013993,2]
[424674309,1781041842000,-593.60148306,0.00013912,2]
[424674314,1781041842000,-150.0,0.00013927,2]
[424674317,1781041842000,-593.60148306,0.00013942,2]
[424674324,1781041842000,-150.0,0.00013967,2]
[424674325,1781041842000,-174.71291421,0.00013972,2]
[424674316,1781041842000,-174.71291421,0.00013942,2]
[424674322,1781041842000,-593.60148306,0.00013957,2]
[424674321,1781041842000,-174.71291421,0.00013957,2]
[424674320,1781041842000,-150.0,0.00013951,2]
[424674319,1781041842000,-150.0,0.00013947,2]
[424674318,1781041842000,-150.0,0.00013944,2]
[424674341,1781041842000,-2000.0,0.00014,2]
[424674338,1781041842000,-593.60148306,0.00013987,2]
[424674312,1781041842000,-174.71291421,0.00013927,2]
[424674315,1781041842000,-150.0,0.00013927,2]
[424674369,1781041842000,-174.71291421,0.00014078,2]
[424674368,1781041842000,-150.0,0.00014074,2]
[424674397,1781041842000,-500.0,0.00014161,2]
[424674400,1781041842000,-150.0,0.00014167,2]
[424674401,1781041842000,-150.0,0.00014169,2]
[424674407,1781041842000,-150.0,0.00014187,2]
[424674406,1781041842000,-593.60148306,0.00014184,2]
[424674409,1781041842000,-150.0,0.00014196,2]
[424674420,1781041842000,-964.99571349,0.00014225,2]
[424674419,1781041842000,-1433.43741035,0.00014225,2]
[424674412,1781041842000,-150.0,0.00014204,2]
[424674414,1781041842000,-174.71291421,0.00014214,2]
[424674411,1781041842000,-593.60148306,0.00014199,2]
[424674413,1781041842000,-150.0,0.00014207,2]
[424674405,1781041842000,-174.71291421,0.00014184,2]
[424674410,1781041842000,-174.71291421,0.00014199,2]
[424674415,1781041842000,-593.60148306,0.00014214,2]
[424674418,1781041842000,-702.61017704,0.00014225,2]
[424674408,1781041842000,-150.0,0.00014188,2]
[424674417,1781041842000,-150.0,0.00014223,2]
[424674421,1781041842000,-2714.31966893,0.00014225,2]
[424674425,1781041842000,-150.0,0.00014237,2]
[424674424,1781041842000,-593.60148306,0.00014229,2]
[424674427,1781041842000,-593.60148306,0.00014245,2]
[424674422,1781041842000,-150.0,0.00014227,2]
[424674426,1781041842000,-174.71291421,0.00014245,2]
[424674423,1781041842000,-174.71291421,0.00014229,2]
[424674367,1781041842000,-150.0,0.00014067,2]
[424674416,1781041842000,-150.0,0.00014221,2]
[424674404,1781041842000,-150.0,0.00014172,2]
[424674428,1781041842000,-150.0,0.00014247,2]
[424674403,1781041842000,-593.60148306,0.00014169,2]
[424674402,1781041842000,-174.71291421,0.00014169,2]
[424674377,1781041842000,-150.0,0.00014107,2]
[424674380,1781041842000,-150.0,0.00014114,2]
[424674376,1781041842000,-150.0,0.00014107,2]
[424674383,1781041842000,-593.60148306,0.00014123,2]
[424674384,1781041842000,-150.0,0.00014127,2]
[424674382,1781041842000,-174.71291421,0.00014123,2]
[424674372,1781041842000,-150.0,0.00014087,2]
[424674378,1781041842000,-174.71291421,0.00014108,2]
[424674374,1781041842000,-174.71291421,0.00014093,2]
[424674379,1781041842000,-593.60148306,0.00014108,2]
[424674381,1781041842000,-150.0,0.00014123,2]
[424674375,1781041842000,-593.60148306,0.00014093,2]
[424674373,1781041842000,-150.0,0.0001409,2]
[424674391,1781041842000,-150.0,0.00014147,2]
[424674398,1781041842000,-62845.81336586,0.00014162,2]
[424674399,1781041842000,-1680.98553391,0.00014164,2]
[424674390,1781041842000,-47248.58835364,0.00014147,2]
[424674389,1781041842000,-150.0,0.00014142,2]
[424674386,1781041842000,-174.71291421,0.00014139,2]
[424674393,1781041842000,-150.0,0.00014154,2]
[424674388,1781041842000,-150.0,0.00014139,2]
[424674396,1781041842000,-702.0,0.00014161,2]
[424674395,1781041842000,-150.0,0.00014156,2]
[424674387,1781041842000,-593.60148306,0.00014139,2]
[424674385,1781041842000,-150.0,0.0001413,2]
[424674392,1781041842000,-174.71291421,0.00014154,2]
[424674394,1781041842000,-593.60148306,0.00014154,2]
[424674487,1781041843000,-513.25,0.00014372,2]
[424674484,1781041843000,-150.0,0.00014367,2]
[424674489,1781041843000,-174.71291421,0.00014381,2]
[424674463,1781041843000,-150.0,0.00014347,2]
[424674470,1781041843000,-150.0,0.00014351,2]
[424674461,1781041843000,-150.0,0.00014344,2]
[424674480,1781041843000,-593.60148306,0.00014366,2]
[424674457,1781041843000,-174.71291421,0.00014335,2]
[424674477,1781041843000,-174.71291421,0.00014366,2]
[424674475,1781041843000,-534.74,0.0001436,2]
[424674459,1781041843000,-593.60148306,0.00014335,2]
[424674493,1781041843000,-150.0,0.00014384,2]
[424674504,1781041843000,-187.28,0.00014398,2]
[424674491,1781041843000,-593.60148306,0.00014381,2]
[424674482,1781041843000,-150.0,0.00014367,2]
[424674500,1781041843000,-174.71291421,0.00014396,2]
[424674502,1781041843000,-593.60148306,0.00014396,2]
[424674498,1781041843000,-150.0,0.00014387,2]